Cogmind - Beta 11 X8 @@@ ROGUE MODE // 2021.10.30 @ 22:15:07 Player: Runia Result: Destroyed by 8R-AWN with 8R-AWN's Boregun Performance ------------- Evolutions (0) 0 Regions Visited (3) 600 Robots Destroyed (32) 160 Value Destroyed (597) 597 Prototype IDs (27) 540 Alien Tech Used (0) 0 Bonus (300) 300 TOTAL SCORE: 2197 Bonus ------- Aligned with FarCom 300 Cogmind --------- Core Integrity 0/250 Matter 225/300 Energy 100/100 System Corruption 0% Temperature Cool (0) Movement Treading (160) Location -10/Exiles Parts ------- > --- POWER (1) -------- (None) > --- PROPULSION (2) --- Light Treads > --- UTILITY (2) ------ Heavy Armor Plating > --- WEAPON (2) ------- Longsword +1 Makeshift Spear > --- INVENTORY (5) ---- High-capacity Matter Pod (200) Hardened Light Armor Plating Hardened Light Armor Plating Grenade Launcher Peak State ------------ > --- POWER ------------ (None) > --- PROPULSION ------- Light Treads Light Treads > --- UTILITY ---------- Heavy Armor Plating > --- WEAPON ----------- Longsword +1 Makeshift Spear > --- INVENTORY -------- High-capacity Matter Pod Grenade Launcher [Rating: 20] Favorites ----------- Power Light Ion Engine Engine Light Ion Engine Propulsion Light Treads Treads Light Treads Leg Aluminum Leg Utility Hardened Light Armor Plating Device Structural Scanner Storage Large Storage Unit Protection Hardened Light Armor Plating Weapon Assault Rifle Energy Gun Medium Laser Ballistic Gun Assault Rifle Launcher Grenade Launcher Slashing Weapon Longsword +1 Piercing Weapon Makeshift Spear Build | -11 -10 -10 -10 ------- Run | Scr Mat Min Exi Slots Evolved . | . . . . Power . | . . . . Propulsion . | . . . . Utility . | . . . . Weapon . | . . . . Parts Attached 31 | . 18 4 9 Power 1 | . 1 . . Engine 1 | . 1 . . Core . | . . . . Reactor . | . . . . Propulsion 6 | . 4 . 2 Treads 6 | . 4 . 2 Leg . | . . . . Wheel . | . . . . Hover . | . . . . Flight . | . . . . Utility 10 | . 7 . 3 Device 2 | . 2 . . Storage 3 | . 3 . . Processor . | . . . . Hackware . | . . . . Protection 5 | . 2 . 3 Artifact . | . . . . Weapon 14 | . 6 4 4 Energy Gun 1 | . 1 . . Energy Cannon . | . . . . Ballistic Gun 6 | . 4 2 . Ballistic Cannon . | . . . . Launcher 5 | . 1 2 2 Special Weapon . | . . . . Impact Weapon . | . . . . Slashing Weapon 1 | . . . 1 Piercing Weapon 1 | . . . 1 Special Melee Weapon . | . . . . Unidentified Prototypes . | . . . . Parts Lost 1 | . . . 1 Power . | . . . . Propulsion 1 | . . . 1 Utility . | . . . . Weapon . | . . . . Highest Loss Streak 1 | . . . 1 Average Slot Usage (%) 92 | . 98 100 80 Engine 10 | . 14 14 5 Treads 27 | . 25 28 27 Device 1 | . 2 . . Storage 11 | . 14 14 5 Protection 12 | . 9 14 15 Energy Gun 3 | . 7 . . Ballistic Gun 18 | . 20 27 11 Launcher 4 | . . . 11 Naked Turns 1 | . . . 1 Heaviest Build 32 | 12 31 32 31 Greatest Support 40 | 20 40 40 40 Greatest Overweight (x) . | . . . . Average Overweight (x) . | . . . . Largest Inventory Capacity 15 | 8 15 15 15 Average Capacity 10 | 8 9 15 9 Most Carried 15 | 5 10 15 15 Average Carried 9 | 5 7 14 7 Final Capacity 15 | 8 15 15 5 Final Carried 15 | 4 10 15 4 Class Distribution -------------------- 100% | Mutant Dominant Class ---------------- Mutant | -10/Materials Mutant | -10/Mines Mutant | -10/Exiles Resources | -11 -10 -10 -10 ----------- Run | Scr Mat Min Exi Matter Collected 1145 | 200 578 99 268 Remotely . | . . . . Salvage Created 1028 | . 890 130 8 Parts 67 | . 55 12 . Haulers Intercepted 2 | . 2 . . Recyclers Shooed . | . . . . Parts Field Recycled . | . . . . Retrieved Matter . | . . . . Parts Self-Destructed . | . . . . Prevented . | . . . . Kills | -11 -10 -10 -10 ------- Run | Scr Mat Min Exi Combat Hostiles Destroyed 23 | . 17 4 2 Guns 16 | . 15 1 . AOE 6 | . 1 3 2 Classes Destroyed 9 | . 6 2 1 Worker 3 | . 2 1 . Tunneler 2 | . . 2 . Hauler 2 | . 2 . . Recycler 2 | . 2 . . Watcher 2 | . 2 . . Swarmer 9 | . 6 3 . Grunt 11 | . 11 . . Sentry 1 | . . 1 . Assembled 2 | . . . 2 Best Kill Streak 7 | . 7 3 2 Combat Bots Only 6 | . 6 3 2 Max Kills in Single Turn 3 | . 2 3 1 Gunslinging 1 | . 1 . . Exploded 3 | . 1 3 1 Melee . | . . . . Uniques/NPCs Destroyed . | . . . . Combat | -11 -10 -10 -10 -------- Run | Scr Mat Min Exi Damage Taken 1326 | . 641 388 297 Core 264 | . 103 72 89 Absorbed by Shields . | . . . . Core Remaining (%) 100 | 100 . . . Volleys Fired 92 | . 66 21 5 Largest 2 | . 2 2 1 Hottest 70 | . 70 40 30 Shots Fired 174 | . 131 38 5 Gun 164 | . 130 34 . Cannon . | . . . . Launcher 10 | . 1 4 5 Special . | . . . . Kinetic 122 | . 88 34 . Thermal 42 | . 42 . . Explosive 10 | . 1 4 5 Electromagnetic . | . . . . Robot Hit Streak 13 | . 13 11 . Robot Miss Streak 3 | . 3 2 . Penetration Max . | . . . . Secondary Targets 2 | . 2 . . Max Gunslinging Chain 1 | . 1 . . Shots Hit Robots 120 | . 84 27 9 Core Hits 55 | . 41 10 4 Critical Kills . | . . . . Critical Parts Destroyed . | . . . . Critical Strikes 4 | . 4 . . Burn 4 | . 4 . . Melee Attacks 10 | . . . 10 Impact . | . . . . Slashing 9 | . . . 9 Piercing 1 | . . . 1 Sneak Attacks . | . . . . Combat Hostiles . | . . . . Follow-up Attacks 1 | . . . 1 Damage Inflicted 2055 | . 1091 420 544 Guns 1342 | . 1037 305 . Cannons . | . . . . Explosions 313 | . 54 115 144 Melee 400 | . . . 400 Ramming . | . . . . Kinetic 973 | . 668 305 . Thermal 369 | . 369 . . Explosive 313 | . 54 115 144 Electromagnetic . | . . . . Impact . | . . . . Slashing 368 | . . . 368 Piercing 32 | . . . 32 Highest Corruption . | . . . . Average Corruption . | . . . . Corruption Purged . | . . . . Overload Shots . | . . . . Overflow Damage . | . . . . Projectiles . | . . . . Explosions . | . . . . Melee . | . . . . Knockbacks . | . . . . Impact . | . . . . Kinetic . | . . . . Secondary . | . . . . Self-Inflicted Damage 16 | . . 16 . Shots 1 | . . 1 . Rammed . | . . . . Targets Rammed . | . . . . Kicked . | . . . . Crushed . | . . . . Highest Temperature 343 | . 343 111 . Average Temperature 70 | . 76 41 . Received Heat Transfer 420 | . 276 144 . Siege Activations . | . . . . Robots Corrupted . | . . . . Combat Hostiles . | . . . . Parts Fried . | . . . . Impact Corruptions . | . . . . Robots Melted 1 | . 1 . . Combat Hostiles 1 | . 1 . . Parts Melted 3 | . 3 . . Heat Transferred 1369 | . 1369 . . Parts Sabotaged . | . . . . Parts Stolen . | . . . . Parts Stripped . | . . . . Power Chain Reactions . | . . . . Missiles Intercepted . | . . . . Alert | -11 -10 -10 -10 ------- Run | Scr Mat Min Exi Peak Influence 340 | . 340 143 . Initial 93 | . . 93 . Average 153 | . 188 81 . Maximum Alert Level 1 | . 1 . . Low Security (%) 60 | 100 41 100 . Level 1 39 | . 58 . . Level 2 . | . . . . Level 3 . | . . . . Level 4 . | . . . . Level 5 . | . . . . High Security . | . . . . Max Security . | . . . . Squads Dispatched 5 | . 4 1 . Investigation 3 | . 2 1 . Extermination . | . . . . Reinforcement 2 | . 2 . . Assault . | . . . . Garrison . | . . . . Intercept . | . . . . Construction Impeded . | . . . . Haulers Reinforced . | . . . . Active Scanning Responses . | . . . . Cargo Convoy Interrupts . | . . . . Stealth | -11 -10 -10 -10 --------- Run | Scr Mat Min Exi Distress Signals 3 | . 3 . . Communications Jammed . | . . . . Distress Signals . | . . . . Times Spotted 41 | . 30 5 6 Peak Tracking Total 9 | . 5 3 9 Tactical Retreats 1 | . 1 . . Traps | -11 -10 -10 -10 ------- Run | Scr Mat Min Exi Traps Triggered 2 | . 2 . . Indirectly . | . . . . Trap Hack Attempts . | . . . . Triggered . | . . . . Disarmed . | . . . . Reprogrammed . | . . . . Reused . | . . . . Traps Extracted . | . . . . Installed . | . . . . Triggered . | . . . . Exploded 3 | . . . 3 Machines | -11 -10 -10 -10 ---------- Run | Scr Mat Min Exi Machines Disabled 4 | . . 1 3 Max in Single Turn 2 | . . 1 2 Machines Sabotaged . | . . . . Garrisons Compromised . | . . . . Overloaded Fab Kills . | . . . . Hacking | -11 -10 -10 -10 --------- Run | Scr Mat Min Exi Machines Accessed 10 | . 7 1 2 Terminals 6 | . 6 . . Fabricators . | . . . . Repair Stations . | . . . . Recycling Units 1 | . 1 . . Scanalyzers . | . . . . Garrison Access . | . . . . Total Hacks 22 | . 19 1 2 Successful 14 | . 11 1 2 Failed 7 | . 7 . . Catastrophic . | . . . . Database Lockouts 1 | . 1 . . Manual 10 | . 9 . 1 Terminals 18 | . 18 . . Fabricators . | . . . . Repair Stations . | . . . . Recycling Units 1 | . 1 . . Scanalyzers . | . . . . Garrison Access . | . . . . Terminal Hacks 13 | . 10 1 2 Record 1 | . . . 1 Robot Analysis 2 | . 2 . . Prototype ID Bank 2 | . 2 . . Open Door 1 | . . 1 . Branch Access Points 1 | . 1 . . Terminal Index 1 | . 1 . . Locate Traps 3 | . 3 . . Hauler Manifests 1 | . 1 . . EX-Prototype ID Bank 1 | . . . 1 Fabricator Hacks . | . . . . Repair Station Hacks . | . . . . Recycling Unit Hacks . | . . . . Scanalyzer . | . . . . Garrison Access Hacks . | . . . . Unauthorized Hacks 1 | . 1 . . Terminals . | . . . . Fabricators . | . . . . Repair Stations . | . . . . Recycling Units 1 | . 1 . . Tunnel 1 | . 1 . . Scanalyzers . | . . . . Garrison Access . | . . . . Data Cores Recovered . | . . . . Used . | . . . . Hacking Detections 5 | . 5 . . Full Trace Events . | . . . . Feedback Events . | . . . . Feedback Blocked . | . . . . Robot Schematics Acquired . | . . . . Robots Built . | . . . . Authchips . | . . . . Time . | . . . . Total Robot Build Rating . | . . . . Part Schematics Acquired . | . . . . Parts Built . | . . . . Authchips . | . . . . Time . | . . . . Total Part Build Rating . | . . . . Parts Repaired . | . . . . Time . | . . . . Parts Recycled . | . . . . Recycled Matter . | . . . . Retrieved Matter . | . . . . Retrieved Components . | . . . . Parts Scanalyzed . | . . . . Part Schematics Acquired . | . . . . Parts Damaged . | . . . . Bothacking | -11 -10 -10 -10 ------------ Run | Scr Mat Min Exi Used RIF Installer . | . . . . Robots Hacked . | . . . . Non-combat . | . . . . Combat . | . . . . Robot Hacks Applied . | . . . . Relay Couplers Released . | . . . . Robots Rewired . | . . . . Allies Hacked . | . . . . Hacks Repelled . | . . . . Allies | -11 -10 -10 -10 -------- Run | Scr Mat Min Exi Total Allies . | . . . . Largest Group . | . . . . Highest-Rated Group . | . . . . Highest-Rated Ally . | . . . . Total Orders . | . . . . Ally Attacks . | . . . . Total Damage . | . . . . Kills . | . . . . Allies Corrupted . | . . . . Allies Melted . | . . . . Intel | -11 -10 -10 -10 ------- Run | Scr Mat Min Exi Robot Analysis Total 2 | . 2 . . Derelict Logs Recovered . | . . . . Drone Launches . | . . . . Drone Recoveries . | . . . . Exploration | -11 -10 -10 -10 ------------- Run | Scr Mat Min Exi Turns Passed 2608 | 1 1108 548 951 Spaces Moved 1404 | 1 551 296 556 Core 5 | . . . 5 Treads 1336 | . 489 296 551 Legs 63 | 1 62 . . Wheels . | . . . . Hover . | . . . . Flight . | . . . . Fastest Speed 50 | 120 120 160 50 Average Speed 157 | 120 155 160 159 Slowest Speed 160 | 120 160 160 160 Overloaded Moves . | . . . . Propulsion Burnouts . | . . . . Robots Hopped . | . . . . Cave-ins Triggered . | . . . . Exploration Rate (%) 53 | 2 89 60 62 Regions Visited 3 Branch Regions 2 Pre-discovered Areas 2 | . 1 . 1 Known Exits Taken 1 | . 1 . . Unknown Exits Taken 2 | 1 . 1 . Scrap Searched 1 | . . 1 . Spaces Dug 7 | . . 7 . Terrain Destroyed 57 | . 8 31 18 Melee . | . . . . Projectile . | . . . . AOE 57 | . 8 31 18 Terrain Rammed . | . . . . Walls Destroyed . | . . . . Machines Disabled . | . . . . Actions | -11 -10 -10 -10 --------- Run | Scr Mat Min Exi Total 1627 | 2 678 335 612 Wait 34 | . 17 7 10 Move 1401 | . 550 295 556 Hop . | . . . . Pick Up 31 | . 14 6 11 Fast Attach 8 | . 2 . 6 Attach 7 | . 5 . 2 Detach 1 | . 1 . . Swap 16 | . 11 4 1 Drop 28 | 2 12 2 12 Fire 92 | . 66 21 5 Melee 9 | . . . 9 Ram . | . . . . Kick . | . . . . Crush . | . . . . Escape Stasis . | . . . . Rewire . | . . . . Trap . | . . . . Miscellaneous . | . . . . Route ------- -11/Scrapyard -10/Materials (discovered 3 exits: [*Mat x2] / *Min) -10/Mines (discovered 2 exits: [*Mat] / *Exi) -10/Exiles History --------- Turn | Location | Event 2 | -11/Scrapyard | Discovered new exit (range 0) 2 | -11/Scrapyard | Entered Materials 301 | -10/Materials | Build established: Mutant 550 | -10/Materials | Discovered new exit (range 3) 782 | -10/Materials | Discovered new exit (range 16) 833 | -10/Materials | Central database locked down 843 | -10/Materials | Identified exit to Mines 1110 | -10/Materials | Entered Mines 1113 | -10/Mines | Met a Derelict shopkeep closing up shop 1161 | -10/Mines | Deemed a non-threat by the Exiles lab entrance 1163 | -10/Mines | Discovered new exit (range 5) 1222 | -10/Mines | A weapon hastily lodged in a ceiling crevice suddenly fell to the ground 1420 | -10/Mines | Core integrity fell below 50% 1495 | -10/Mines | Discovered new exit (range 9) 1658 | -10/Mines | Entered Exiles 1697 | -10/Exiles | Met 8R-AWN 1724 | -10/Exiles | Met EX-HEX 1786 | -10/Exiles | Met EX-DEC 1794 | -10/Exiles | Learned location of Zion (-7) 1828 | -10/Exiles | Met EX-BIN 1849 | -10/Exiles | Aligned with FarCom system 1850 | -10/Exiles | Given EX-Vault access code 1887 | -10/Exiles | Opened EX-Vault 1899 | -10/Exiles | Found Longsword +1 1934 | -10/Exiles | Warned to stay clear of 0b10 Research branches 2044 | -10/Exiles | Released all parts (7) 2494 | -10/Exiles | Attacked by the Exiles 2593 | -10/Exiles | Core integrity fell below 20% 2609 | -10/Exiles | Destroyed by 8R-AWN with 8R-AWN's Boregun Last Messages --------------- 02600_ The unstable cave ceiling collapses. 02601_ Penetrated by HV Slug. 02601_ Critical hit (Destroy). 02601_ HV Slug penetrates Earth. 02601_ Penetrated by HV Slug. 02601_ HV Slug penetrates Earth. 02603_ Penetrated by HV Slug. 02603_ HV Slug penetrates Earth. 02603_ Penetrated by HV Slug. 02603_ Critical hit (Destroy). 02603_ HV Slug penetrates Earth. 02606_ Penetrated by HV Slug. 02606_ HV Slug penetrates Earth. 02606_ Penetrated by HV Slug. 02606_ Critical hit (Destroy). 02606_ HV Slug penetrates Earth. 02609_ HV Slug penetrates Machine. 02609_ Machine disabled. 02609_ HV Slug penetrates Machine. 02609_ Penetrated by HV Slug. Map ----- +----------------------------------------------------+ | ?????????????????????????????????????????????????? | | ?????????????????????????????????????????????????? | | ?????????????????????????????????????????????????? | | ?????????????????????????????????????????????????? | | ?????????????????????????????????????????????????? | | ?????????????????????????????????????????????????? | | ?????????????????????????????????????????????????? | | ?????????????????????????????????????????????????? | | ?????????????????????????????????????????????????? | | ?????????????????????????????????????????????????? | | ????????? ??????????????????????????????????????? | | ????????# ????????????????????????????????????? | | ????????# ????????????????????????????????????? | | ?????????# ???????????????????????????????????? | | ?????????# ??????????????????????????????????? | | ??????????# ?????????????#######?????????????? | | ??????????# #######??????#!! "#?????????????? | | ??????????# #""##?????# "#?????????????? | | ???????????# #?????# "#?????????????? | | ???????????##" ##???## ""#????????????## | | ???????????#"" [ [ #####" ""#???????????? | | ???????????#### !][ ##" ""#????????????" | | ??????????????## ]!!! #"" ###???????????"" | | ???????????????#"## * ##???????????"" | | ???????????????#??#### g # ###???????"" | | ?????????????????????### @ ##??????? | | ???????????????######## # #????????" | | ???????????????# !!""" " # #????????# | | ???????????????#! !/"#; ###???### | | ???????????????#! ]"#### % #####X | | ???????????????#! ##??#" | | ???????????????# ! " """#;#???#"# | | ???????????????########## #???#### | | ????????????????????????# #??????### | | ????????????????????????# #????????### | | ????????????????????????? ???????????## | | ????????????????????????? ????????????## | | ????????????????????????? ?????????????##" | | ????????????????????????? ??????????????#""" | | ????????????????????????? ??????????????#" | | ?????????????????????????#?????????????#"" | | ???????????????????????????????????????#""" | | ???????????????????????????????????????""" | | ???????????????????????????????????????""" | | ???????????????????????????????????????"" | | ???????????????????????????????????????""" | | ???????????????????????????????????????"" | | ????????????????????????????????????????"" | | ???????????????????????????????????????#"""" | | ?????????????????????????????????????????? | +----------------------------------------------------+ Best States ------------- Heat Dissipation 25 Energy Generation 10 Energy Capacity 125 Matter Stores 300 Matter Capacity 500 Sight Range 16 Terrain Scan Density 10 Armor Coverage 600 Evasion (%) 55 Recoil Reduction 2 Item Schematics ----------------- None Robot Schematics ------------------ None Fabricated ------------ Nothing Alien Tech Used ----------------- None Achievements -------------- None Challenges ------------ None Game ------ Seed IntegratedNodeShredder Manual? 0 Play Time 00:17:03 Cumulative 417.7 hours Start 2021.10.30 @ 21:56:44 End 2021.10.30 @ 22:15:07 Sessions 1 Manual Loads 0 Difficulty Rogue Special Mode None Game No. 421 Rogue 421 Adventurer 0 Explorer 0 Win Type - Total 8 Types 7/0/0/1/0/0/0/0/0 Lore% 79 Gallery% 92 Achievement% 69 Wizard Run 0 Options --------- ASCII 0 Keyboard 0 Movement Mouse Keybinds 1 Fullscreen 2 Font 24/Smallcaps Map View 76x50 Tactical HUD 1 Map Filters NONE Filters NONE Steam 1 RUN: 91b82155-f1bf-4f05-aafe-6263b15c52e9